[Event "Titled Tuesday Blitz October 11 Late 2022"]
[White "Torres Boch, Jose Francisco"]
[Black "Banzea, Alexandru-Bogdan"]
[WhiteFideId "2278383"]
[BlackFideId "1232622"]
[WhiteElo "2073"]
[BlackElo "2294"]
[Result "0-1"]
[Round "10"]
[TimeControl "180+1"]
[Date "2022.10.12"]
[WhiteClock "0:01:01"]
[BlackClock "0:00:34"]

1. e4 {[%clk 0:03:00]}  e6 {[%clk 0:02:46]} 2. d4 {[%clk 0:02:59]}  d5 {[%clk 0:02:45]} 3. Nc3 {[%clk 0:03:00]}  Nf6 {[%clk 0:02:42]} 4. e5 {[%clk 0:03:00]}  Nfd7 {[%clk 0:02:42]} 5. f4 {[%clk 0:03:01]}  c5 {[%clk 0:02:43]} 6. Nf3 {[%clk 0:03:01]}  Nc6 {[%clk 0:02:41]} 7. Be3 {[%clk 0:03:01]}  Be7 {[%clk 0:02:42]} 8. Qd2 {[%clk 0:03:00]}  O-O {[%clk 0:02:42]} 9. dxc5 {[%clk 0:03:01]}  Qa5 {[%clk 0:02:35]} 10. O-O-O {[%clk 0:02:39]}  b6 {[%clk 0:02:34]} 11. Bb5 {[%clk 0:02:32]}  Bb7 {[%clk 0:02:31]} 12. Kb1 {[%clk 0:02:23]}  bxc5 {[%clk 0:02:26]} 13. Bxc6 {[%clk 0:02:14]}  Bxc6 {[%clk 0:02:26]} 14. Nxd5 {[%clk 0:02:12]}  Qd8 {[%clk 0:02:22]} 15. Nxe7+ {[%clk 0:02:12]}  Qxe7 {[%clk 0:02:23]} 16. Qd6 {[%clk 0:02:09]}  Qxd6 {[%clk 0:02:12]} 17. Rxd6 {[%clk 0:02:10]}  Rfc8 {[%clk 0:02:11]} 18. Rhd1 {[%clk 0:02:08]}  Nb6 {[%clk 0:02:00]} 19. b3 {[%clk 0:02:04]}  Bxf3 {[%clk 0:01:54]} 20. gxf3 {[%clk 0:02:03]}  Nd5 {[%clk 0:01:55]} 21. Bd2 {[%clk 0:01:56]}  c4 {[%clk 0:01:55]} 22. Ba5 {[%clk 0:01:45]}  g6 {[%clk 0:01:36]} 23. Rd4 {[%clk 0:01:40]}  Rab8 {[%clk 0:01:34]} 24. Kc1 {[%clk 0:01:37]}  cxb3 {[%clk 0:01:31]} 25. axb3 {[%clk 0:01:36]}  Rxb3 {[%clk 0:01:31]} 26. Rd8+ {[%clk 0:01:34]}  Rxd8 {[%clk 0:01:32]} 27. cxb3 {[%clk 0:01:34]}  Rc8+ {[%clk 0:01:18]} 28. Rc4 {[%clk 0:01:33]}  Rxc4+ {[%clk 0:01:13]} 29. bxc4 {[%clk 0:01:31]}  Nxf4 {[%clk 0:01:13]} 30. Kd2 {[%clk 0:01:27]}  Kf8 {[%clk 0:01:09]} 31. Ke3 {[%clk 0:01:26]}  Nh5 {[%clk 0:01:05]} 32. Kd4 {[%clk 0:01:20]}  Ke8 {[%clk 0:01:05]} 33. Kc5 {[%clk 0:01:19]}  Kd7 {[%clk 0:00:59]} 34. Kb5 {[%clk 0:01:17]}  Nf4 {[%clk 0:00:59]} 35. Ka6 {[%clk 0:01:16]}  Kc6 {[%clk 0:00:46]} 36. Kxa7 {[%clk 0:01:15]}  Nd3 {[%clk 0:00:36]} 37. Bc3 {[%clk 0:01:08]}  Kc5 {[%clk 0:00:35]} 38. Kb7 {[%clk 0:01:08]}  Kxc4 {[%clk 0:00:36]} 39. Ba1 {[%clk 0:01:07]}  Kd5 {[%clk 0:00:36]} 40. Kc7 {[%clk 0:01:03]}  Nxe5 {[%clk 0:00:35]} 41. Kd8 {[%clk 0:01:02]}  Nxf3 {[%clk 0:00:34]} 42. Ke7 {[%clk 0:01:01]}  f5 {[%clk 0:00:34]} 0-1


[Site "https://www.chess.com"]

[Event "Titled Tuesday Blitz October 11 Late 2022"]
[White "Vega Gutierrez, Sabrina"]
[Black "Haszon, David"]
[WhiteFideId "2219026"]
[BlackFideId "733610"]
[WhiteElo "2261"]
[BlackElo "2211"]
[Result "1/2-1/2"]
[Round "10"]
[TimeControl "180+1"]
[Date "2022.10.12"]
[WhiteClock "0:00:06"]
[BlackClock "0:00:15"]

1. e4 {[%clk 0:03:00]}  c5 {[%clk 0:02:54]} 2. Nf3 {[%clk 0:03:00]}  d6 {[%clk 0:02:54]} 3. d4 {[%clk 0:03:01]}  cxd4 {[%clk 0:02:55]} 4. Qxd4 {[%clk 0:03:01]}  Nf6 {[%clk 0:02:56]} 5. Nc3 {[%clk 0:03:01]}  a6 {[%clk 0:02:56]} 6. Bg5 {[%clk 0:03:00]}  Nc6 {[%clk 0:02:51]} 7. Qd2 {[%clk 0:03:01]}  e6 {[%clk 0:02:47]} 8. O-O-O {[%clk 0:03:00]}  Qc7 {[%clk 0:02:44]} 9. Nd4 {[%clk 0:02:48]}  Be7 {[%clk 0:02:34]} 10. Nxc6 {[%clk 0:02:46]}  Qxc6 {[%clk 0:02:30]} 11. Bxf6 {[%clk 0:02:41]}  gxf6 {[%clk 0:02:22]} 12. Be2 {[%clk 0:02:38]}  Qc5 {[%clk 0:02:16]} 13. f4 {[%clk 0:02:30]}  b5 {[%clk 0:02:11]} 14. Bf3 {[%clk 0:02:27]}  Rb8 {[%clk 0:02:07]} 15. Kb1 {[%clk 0:02:21]}  Bd7 {[%clk 0:02:01]} 16. Rhe1 {[%clk 0:02:20]}  b4 {[%clk 0:01:59]} 17. Ne2 {[%clk 0:02:19]}  a5 {[%clk 0:01:39]} 18. f5 {[%clk 0:02:17]}  a4 {[%clk 0:01:35]} 19. Nf4 {[%clk 0:02:05]}  a3 {[%clk 0:01:14]} 20. b3 {[%clk 0:02:05]}  Qe5 {[%clk 0:01:08]} 21. Nd3 {[%clk 0:02:01]}  Qd4 {[%clk 0:01:08]} 22. fxe6 {[%clk 0:01:36]}  fxe6 {[%clk 0:01:00]} 23. e5 {[%clk 0:01:35]}  d5 {[%clk 0:00:33]} 24. Bh5+ {[%clk 0:01:19]}  Kd8 {[%clk 0:00:34]} 25. Qf4 {[%clk 0:01:06]}  fxe5 {[%clk 0:00:23]} 26. Qxe5 {[%clk 0:00:48]}  Qxe5 {[%clk 0:00:22]} 27. Nxe5 {[%clk 0:00:48]}  Rg8 {[%clk 0:00:12]} 28. Bf7 {[%clk 0:00:33]}  Rxg2 {[%clk 0:00:11]} 29. Nxd7 {[%clk 0:00:34]}  Kxd7 {[%clk 0:00:12]} 30. Bxe6+ {[%clk 0:00:33]}  Kc7 {[%clk 0:00:12]} 31. Bxd5 {[%clk 0:00:32]}  Rg7 {[%clk 0:00:12]} 32. Re4 {[%clk 0:00:30]}  Bc5 {[%clk 0:00:10]} 33. Rc4 {[%clk 0:00:29]}  Kb6 {[%clk 0:00:11]} 34. Re1 {[%clk 0:00:28]}  Re8 {[%clk 0:00:09]} 35. Be4 {[%clk 0:00:13]}  Rge7 {[%clk 0:00:09]} 36. c3 {[%clk 0:00:12]}  bxc3 {[%clk 0:00:08]} 37. Kc2 {[%clk 0:00:11]}  Rf8 {[%clk 0:00:06]} 38. Re2 {[%clk 0:00:06]}  Rf1 {[%clk 0:00:05]} 39. Kxc3 {[%clk 0:00:04]}  Rc1+ {[%clk 0:00:05]} 40. Kd3 {[%clk 0:00:03]}  Rd1+ {[%clk 0:00:05]} 41. Rd2 {[%clk 0:00:03]}  Rxd2+ {[%clk 0:00:03]} 42. Kxd2 {[%clk 0:00:04]}  Rd7+ {[%clk 0:00:04]} 43. Ke2 {[%clk 0:00:04]}  Rg7 {[%clk 0:00:05]} 44. Bf3 {[%clk 0:00:04]}  Re7+ {[%clk 0:00:05]} 45. Re4 {[%clk 0:00:04]}  Rxe4+ {[%clk 0:00:05]} 46. Bxe4 {[%clk 0:00:05]}  h6 {[%clk 0:00:05]} 47. Kd3 {[%clk 0:00:06]}  Bb4 {[%clk 0:00:04]} 48. Kc4 {[%clk 0:00:06]}  Ka5 {[%clk 0:00:05]} 49. h3 {[%clk 0:00:06]}  Bf8 {[%clk 0:00:05]} 50. Bd5 {[%clk 0:00:05]}  Bb4 {[%clk 0:00:06]} 51. Bf7 {[%clk 0:00:05]}  Bf8 {[%clk 0:00:07]} 52. Be8 {[%clk 0:00:05]}  Bb4 {[%clk 0:00:08]} 53. h4 {[%clk 0:00:04]}  Bf8 {[%clk 0:00:09]} 54. h5 {[%clk 0:00:05]}  Bb4 {[%clk 0:00:09]} 55. Kd5 {[%clk 0:00:05]}  Bf8 {[%clk 0:00:10]} 56. Ke6 {[%clk 0:00:05]}  Bb4 {[%clk 0:00:11]} 57. Kf5 {[%clk 0:00:05]}  Bd2 {[%clk 0:00:11]} 58. Kg6 {[%clk 0:00:04]}  Kb4 {[%clk 0:00:12]} 59. Bf7 {[%clk 0:00:04]}  Bc1 {[%clk 0:00:13]} 60. Be6 {[%clk 0:00:04]}  Bd2 {[%clk 0:00:13]} 61. Bf7 {[%clk 0:00:05]}  Kc3 {[%clk 0:00:12]} 62. Bg8 {[%clk 0:00:05]}  Be3 {[%clk 0:00:12]} 63. b4 {[%clk 0:00:05]}  Kxb4 {[%clk 0:00:12]} 64. Bb3 {[%clk 0:00:06]}  Bg5 {[%clk 0:00:12]} 65. Kf5 {[%clk 0:00:06]}  Kc3 {[%clk 0:00:13]} 66. Ke4 {[%clk 0:00:05]}  Kb4 {[%clk 0:00:14]} 67. Kd3 {[%clk 0:00:05]}  Bf4 {[%clk 0:00:13]} 68. Ke4 {[%clk 0:00:06]}  Bg5 {[%clk 0:00:14]} 69. Kf5 {[%clk 0:00:06]}  Kc3 {[%clk 0:00:14]} 70. Ke4 {[%clk 0:00:06]}  Kb4 {[%clk 0:00:15]} 1/2-1/2


[Site "https://www.chess.com"]

[Event "Titled Tuesday Blitz October 11 Late 2022"]
[White "Vujcic, Milena"]
[Black "Burke, Paul"]
[WhiteFideId "954748"]
[BlackFideId "2605767"]
[WhiteElo "1931"]
[BlackElo "1902"]
[Result "1-0"]
[Round "10"]
[TimeControl "180+1"]
[Date "2022.10.12"]
[WhiteClock "0:00:52"]
[BlackClock "0:00:07"]

1. e4 {[%clk 0:03:00]}  a6 {[%clk 0:02:59]} 2. d4 {[%clk 0:03:00]}  d6 {[%clk 0:02:59]} 3. Nc3 {[%clk 0:02:57]}  g6 {[%clk 0:02:59]} 4. f4 {[%clk 0:02:56]}  Nd7 {[%clk 0:03:00]} 5. Nf3 {[%clk 0:02:56]}  Bg7 {[%clk 0:03:00]} 6. Bd3 {[%clk 0:02:55]}  h6 {[%clk 0:03:00]} 7. O-O {[%clk 0:02:56]}  e6 {[%clk 0:03:00]} 8. f5 {[%clk 0:02:55]}  Ne7 {[%clk 0:02:59]} 9. fxe6 {[%clk 0:02:50]}  fxe6 {[%clk 0:02:57]} 10. Be3 {[%clk 0:02:47]}  O-O {[%clk 0:02:56]} 11. Qd2 {[%clk 0:02:45]}  Kh7 {[%clk 0:02:55]} 12. Ne2 {[%clk 0:02:42]}  e5 {[%clk 0:02:53]} 13. c3 {[%clk 0:02:39]}  c5 {[%clk 0:02:42]} 14. Ng3 {[%clk 0:02:37]}  Nc6 {[%clk 0:02:27]} 15. d5 {[%clk 0:02:27]}  Ne7 {[%clk 0:02:26]} 16. h4 {[%clk 0:02:04]}  b5 {[%clk 0:02:23]} 17. h5 {[%clk 0:02:04]}  Qe8 {[%clk 0:02:20]} 18. hxg6+ {[%clk 0:02:02]}  Qxg6 {[%clk 0:02:18]} 19. Nf5 {[%clk 0:02:01]}  Nxf5 {[%clk 0:01:45]} 20. exf5 {[%clk 0:02:01]}  Qf6 {[%clk 0:01:41]} 21. Bf2 {[%clk 0:01:53]}  Kh8 {[%clk 0:01:20]} 22. Bh4 {[%clk 0:01:51]}  Qf7 {[%clk 0:01:20]} 23. g4 {[%clk 0:01:41]}  Qxd5 {[%clk 0:01:09]} 24. Qe2 {[%clk 0:01:34]}  Bb7 {[%clk 0:00:59]} 25. Rae1 {[%clk 0:01:33]}  e4 {[%clk 0:00:53]} 26. Bxe4 {[%clk 0:01:33]}  Qxe4 {[%clk 0:00:53]} 27. Qxe4 {[%clk 0:01:33]}  Bxe4 {[%clk 0:00:53]} 28. Rxe4 {[%clk 0:01:34]}  Rae8 {[%clk 0:00:53]} 29. Rfe1 {[%clk 0:01:32]}  Rxe4 {[%clk 0:00:47]} 30. Rxe4 {[%clk 0:01:33]}  Ne5 {[%clk 0:00:47]} 31. Nxe5 {[%clk 0:01:23]}  Bxe5 {[%clk 0:00:47]} 32. Kf2 {[%clk 0:01:14]}  h5 {[%clk 0:00:39]} 33. Kf3 {[%clk 0:01:12]}  hxg4+ {[%clk 0:00:38]} 34. Kxg4 {[%clk 0:01:13]}  Rg8+ {[%clk 0:00:38]} 35. Kh5 {[%clk 0:01:14]}  Kh7 {[%clk 0:00:28]} 36. f6 {[%clk 0:01:01]}  Rf8 {[%clk 0:00:28]} 37. Bg5 {[%clk 0:00:54]}  Bxf6 {[%clk 0:00:25]} 38. Rf4 {[%clk 0:00:53]}  Bxg5 {[%clk 0:00:12]} 39. Rxf8 {[%clk 0:00:52]}  Bc1 {[%clk 0:00:10]} 40. b3 {[%clk 0:00:52]}  Bb2 {[%clk 0:00:09]} 41. c4 {[%clk 0:00:51]}  Be5 {[%clk 0:00:09]} 42. Ra8 {[%clk 0:00:50]}  bxc4 {[%clk 0:00:08]} 43. bxc4 {[%clk 0:00:51]}  Kg7 {[%clk 0:00:07]} 44. Rxa6 {[%clk 0:00:51]}  Kf6 {[%clk 0:00:07]} 45. Kg4 {[%clk 0:00:52]} 1-0


[Site "https://www.chess.com"]

[Event "Titled Tuesday Blitz October 11 Late 2022"]
[White "Winterberg, Lukas"]
[Black "Sarkar, Justin"]
[WhiteFideId "24622702"]
[BlackFideId "2010011"]
[WhiteElo "2349"]
[BlackElo "2250"]
[Result "1-0"]
[Round "10"]
[TimeControl "180+1"]
[Date "2022.10.12"]
[WhiteClock "0:00:09"]
[BlackClock "0:00:02"]

1. e4 {[%clk 0:02:58]}  e5 {[%clk 0:02:58]} 2. Nf3 {[%clk 0:02:55]}  Nc6 {[%clk 0:02:58]} 3. Bc4 {[%clk 0:02:51]}  Nf6 {[%clk 0:02:55]} 4. d3 {[%clk 0:02:45]}  Be7 {[%clk 0:02:54]} 5. O-O {[%clk 0:02:45]}  O-O {[%clk 0:02:54]} 6. c3 {[%clk 0:02:43]}  d5 {[%clk 0:02:38]} 7. exd5 {[%clk 0:02:40]}  Nxd5 {[%clk 0:02:39]} 8. Re1 {[%clk 0:02:41]}  Qd6 {[%clk 0:02:26]} 9. Nbd2 {[%clk 0:02:39]}  Nb6 {[%clk 0:02:22]} 10. Bb5 {[%clk 0:02:36]}  f6 {[%clk 0:02:18]} 11. d4 {[%clk 0:02:24]}  exd4 {[%clk 0:01:40]} 12. cxd4 {[%clk 0:01:44]}  Nd5 {[%clk 0:01:22]} 13. Ne4 {[%clk 0:01:26]}  Qd8 {[%clk 0:01:21]} 14. Qb3 {[%clk 0:01:19]}  Na5 {[%clk 0:01:14]} 15. Qa4 {[%clk 0:01:10]}  c6 {[%clk 0:01:12]} 16. Bd3 {[%clk 0:01:08]}  b5 {[%clk 0:01:07]} 17. Qd1 {[%clk 0:01:01]}  Nb4 {[%clk 0:00:53]} 18. Bb1 {[%clk 0:00:47]}  Nc4 {[%clk 0:00:50]} 19. b3 {[%clk 0:00:34]}  Nb6 {[%clk 0:00:38]} 20. a3 {[%clk 0:00:33]}  N4d5 {[%clk 0:00:37]} 21. Nc5 {[%clk 0:00:23]}  Bxc5 {[%clk 0:00:31]} 22. dxc5 {[%clk 0:00:22]}  Nd7 {[%clk 0:00:31]} 23. Qc2 {[%clk 0:00:20]}  g6 {[%clk 0:00:30]} 24. Nd4 {[%clk 0:00:20]}  Ne5 {[%clk 0:00:26]} 25. f4 {[%clk 0:00:18]}  Ng4 {[%clk 0:00:21]} 26. h3 {[%clk 0:00:16]}  Nxf4 {[%clk 0:00:09]} 27. Rd1 {[%clk 0:00:10]}  Qe7 {[%clk 0:00:04]} 28. Bxf4 {[%clk 0:00:09]}  Ne3 {[%clk 0:00:03]} 29. Bxe3 {[%clk 0:00:09]}  Qxe3+ {[%clk 0:00:03]} 30. Qf2 {[%clk 0:00:10]}  Qe5 {[%clk 0:00:03]} 31. Bc2 {[%clk 0:00:08]}  Bb7 {[%clk 0:00:03]} 32. Re1 {[%clk 0:00:08]}  Qd5 {[%clk 0:00:02]} 33. Rad1 {[%clk 0:00:09]}  Rad8 {[%clk 0:00:02]} 34. Ne6 {[%clk 0:00:09]} 1-0


[Site "https://www.chess.com"]

[Event "Titled Tuesday Blitz October 11 Late 2022"]
[White "Yano, William Jorge Froes"]
[Black "Ambartsumova, Karina"]
[WhiteFideId "2112949"]
[BlackFideId "4166299"]
[WhiteElo "2122"]
[BlackElo "2299"]
[Result "1-0"]
[Round "10"]
[TimeControl "180+1"]
[Date "2022.10.12"]
[WhiteClock "0:00:03"]
[BlackClock "0:00:02"]

1. e4 {[%clk 0:03:00]}  e5 {[%clk 0:02:59]} 2. Nc3 {[%clk 0:03:00]}  Nf6 {[%clk 0:02:56]} 3. f4 {[%clk 0:03:00]}  d5 {[%clk 0:02:55]} 4. fxe5 {[%clk 0:03:01]}  Nxe4 {[%clk 0:02:55]} 5. Nf3 {[%clk 0:03:01]}  Nc6 {[%clk 0:02:52]} 6. Qe2 {[%clk 0:02:59]}  Nxc3 {[%clk 0:02:52]} 7. dxc3 {[%clk 0:02:59]}  Be7 {[%clk 0:02:51]} 8. Bf4 {[%clk 0:02:59]}  O-O {[%clk 0:02:47]} 9. O-O-O {[%clk 0:02:59]}  f6 {[%clk 0:02:43]} 10. Bg3 {[%clk 0:02:50]}  fxe5 {[%clk 0:02:41]} 11. Nxe5 {[%clk 0:02:49]}  Nxe5 {[%clk 0:02:36]} 12. Qxe5 {[%clk 0:02:45]}  c6 {[%clk 0:02:30]} 13. Bd3 {[%clk 0:02:43]}  Bf6 {[%clk 0:02:23]} 14. Qh5 {[%clk 0:02:35]}  g6 {[%clk 0:02:18]} 15. Qh6 {[%clk 0:02:30]}  Bg7 {[%clk 0:02:16]} 16. Qd2 {[%clk 0:02:23]}  a5 {[%clk 0:02:03]} 17. Kb1 {[%clk 0:02:23]}  a4 {[%clk 0:02:02]} 18. a3 {[%clk 0:02:19]}  Bg4 {[%clk 0:01:51]} 19. Rdf1 {[%clk 0:02:13]}  Qb6 {[%clk 0:01:46]} 20. h3 {[%clk 0:02:07]}  Bd7 {[%clk 0:01:41]} 21. Bd6 {[%clk 0:02:05]}  Rxf1+ {[%clk 0:01:35]} 22. Rxf1 {[%clk 0:02:03]}  c5 {[%clk 0:01:35]} 23. Bg3 {[%clk 0:01:37]}  Re8 {[%clk 0:01:26]} 24. Be2 {[%clk 0:01:24]}  Rxe2 {[%clk 0:00:52]} 25. Qxe2 {[%clk 0:01:01]}  Bxc3 {[%clk 0:00:51]} 26. b3 {[%clk 0:00:54]}  axb3 {[%clk 0:00:42]} 27. Kc1 {[%clk 0:00:22]}  Bb5 {[%clk 0:00:30]} 28. Qe7 {[%clk 0:00:14]}  Bxf1 {[%clk 0:00:28]} 29. Bd6 {[%clk 0:00:12]}  Bd2+ {[%clk 0:00:03]} 30. Kxd2 {[%clk 0:00:09]}  Qa5+ {[%clk 0:00:03]} 31. c3 {[%clk 0:00:09]}  Qa8 {[%clk 0:00:01]} 32. Qe6+ {[%clk 0:00:07]}  Kg7 {[%clk 0:00:02]} 33. Be5+ {[%clk 0:00:06]}  Kh6 {[%clk 0:00:02]} 34. Bf4+ {[%clk 0:00:04]}  Kg7 {[%clk 0:00:02]} 35. Qe7+ {[%clk 0:00:03]}  Kg8 {[%clk 0:00:02]} 36. Bh6 {[%clk 0:00:03]} 1-0


[Site "https://www.chess.com"]

[Event "Titled Tuesday Blitz October 11 Late 2022"]
[White "Zhigalko, Sergei"]
[Black "Kollars, Dmitrij"]
[WhiteFideId "13502956"]
[BlackFideId "12909572"]
[WhiteElo "2662"]
[BlackElo "2584"]
[Result "1/2-1/2"]
[Round "10"]
[TimeControl "180+1"]
[Date "2022.10.11"]
[WhiteClock "0:00:05"]
[BlackClock "0:00:12"]

1. e4 {[%clk 0:03:00]}  c6 {[%clk 0:02:59]} 2. d4 {[%clk 0:03:00]}  d5 {[%clk 0:03:00]} 3. e5 {[%clk 0:03:01]}  Bf5 {[%clk 0:02:59]} 4. Nf3 {[%clk 0:03:02]}  e6 {[%clk 0:02:58]} 5. Be2 {[%clk 0:03:02]}  c5 {[%clk 0:02:58]} 6. Be3 {[%clk 0:03:02]}  Nd7 {[%clk 0:02:55]} 7. O-O {[%clk 0:02:56]}  Ne7 {[%clk 0:02:55]} 8. Nbd2 {[%clk 0:02:37]}  Nc6 {[%clk 0:02:49]} 9. c4 {[%clk 0:02:34]}  dxc4 {[%clk 0:02:44]} 10. Nxc4 {[%clk 0:02:33]}  Be7 {[%clk 0:02:20]} 11. dxc5 {[%clk 0:01:55]}  Nxc5 {[%clk 0:02:21]} 12. Qc1 {[%clk 0:01:54]}  O-O {[%clk 0:01:51]} 13. Rd1 {[%clk 0:01:54]}  Qb8 {[%clk 0:01:37]} 14. Nd6 {[%clk 0:01:49]}  Ne4 {[%clk 0:01:33]} 15. Bf4 {[%clk 0:00:57]}  Bg6 {[%clk 0:01:21]} 16. Qc4 {[%clk 0:00:36]}  Nxe5 {[%clk 0:01:05]} 17. Nxe5 {[%clk 0:00:36]}  Nxd6 {[%clk 0:00:52]} 18. Qb3 {[%clk 0:00:36]}  Rd8 {[%clk 0:00:41]} 19. Rac1 {[%clk 0:00:15]}  Be4 {[%clk 0:00:40]} 20. Qg3 {[%clk 0:00:14]}  Nf5 {[%clk 0:00:35]} 21. Qg4 {[%clk 0:00:12]}  Rxd1+ {[%clk 0:00:30]} 22. Rxd1 {[%clk 0:00:11]}  Qe8 {[%clk 0:00:31]} 23. h4 {[%clk 0:00:04]}  Rd8 {[%clk 0:00:29]} 24. h5 {[%clk 0:00:02]}  Rxd1+ {[%clk 0:00:27]} 25. Bxd1 {[%clk 0:00:03]}  h6 {[%clk 0:00:26]} 26. Bxh6 {[%clk 0:00:03]}  Qd8 {[%clk 0:00:19]} 27. Be2 {[%clk 0:00:02]}  Qd5 {[%clk 0:00:16]} 28. Bf4 {[%clk 0:00:02]}  Bf6 {[%clk 0:00:15]} 29. Nf3 {[%clk 0:00:01]}  Nd4 {[%clk 0:00:12]} 30. Nxd4 {[%clk 0:00:01]}  Qxd4 {[%clk 0:00:13]} 31. h6 {[%clk 0:00:02]}  Bf5 {[%clk 0:00:13]} 32. Qg3 {[%clk 0:00:02]}  Qxb2 {[%clk 0:00:13]} 33. Bf1 {[%clk 0:00:02]}  Qa1 {[%clk 0:00:12]} 34. Qe3 {[%clk 0:00:02]}  gxh6 {[%clk 0:00:12]} 35. Bxh6 {[%clk 0:00:02]}  Bd4 {[%clk 0:00:10]} 36. Qe2 {[%clk 0:00:02]}  Qb1 {[%clk 0:00:08]} 37. Be3 {[%clk 0:00:02]}  Bxe3 {[%clk 0:00:07]} 38. fxe3 {[%clk 0:00:03]}  Qe4 {[%clk 0:00:07]} 39. Qf2 {[%clk 0:00:03]}  Kg7 {[%clk 0:00:08]} 40. Qg3+ {[%clk 0:00:04]}  Kf6 {[%clk 0:00:08]} 41. Qf2 {[%clk 0:00:02]}  a5 {[%clk 0:00:08]} 42. Qb2+ {[%clk 0:00:02]}  Qe5 {[%clk 0:00:08]} 43. Qf2 {[%clk 0:00:02]}  Qb8 {[%clk 0:00:08]} 44. Qh4+ {[%clk 0:00:02]}  Kg7 {[%clk 0:00:08]} 45. Qd4+ {[%clk 0:00:03]}  Kg8 {[%clk 0:00:07]} 46. Qc5 {[%clk 0:00:02]}  b6 {[%clk 0:00:06]} 47. Qe7 {[%clk 0:00:02]}  Qe5 {[%clk 0:00:06]} 48. Qd8+ {[%clk 0:00:03]}  Kg7 {[%clk 0:00:07]} 49. Qxb6 {[%clk 0:00:03]}  Qc3 {[%clk 0:00:07]} 50. Qd4+ {[%clk 0:00:03]}  Qxd4 {[%clk 0:00:06]} 51. exd4 {[%clk 0:00:04]}  Kf6 {[%clk 0:00:07]} 52. Kf2 {[%clk 0:00:04]}  Be4 {[%clk 0:00:07]} 53. Ke3 {[%clk 0:00:04]}  Bd5 {[%clk 0:00:06]} 54. a3 {[%clk 0:00:04]}  Kg5 {[%clk 0:00:07]} 55. g3 {[%clk 0:00:04]}  Kg4 {[%clk 0:00:07]} 56. Kf2 {[%clk 0:00:04]}  Kf5 {[%clk 0:00:07]} 57. Ke3 {[%clk 0:00:04]}  f6 {[%clk 0:00:07]} 58. Bh3+ {[%clk 0:00:04]}  Kg5 {[%clk 0:00:05]} 59. Kf2 {[%clk 0:00:04]}  Kg6 {[%clk 0:00:05]} 60. Ke3 {[%clk 0:00:04]}  Kf7 {[%clk 0:00:06]} 61. Kf4 {[%clk 0:00:04]}  Ke7 {[%clk 0:00:07]} 62. Bf1 {[%clk 0:00:03]}  Kd6 {[%clk 0:00:07]} 63. Ke3 {[%clk 0:00:03]}  Bc6 {[%clk 0:00:07]} 64. Bc4 {[%clk 0:00:03]}  Bd5 {[%clk 0:00:06]} 65. Bb5 {[%clk 0:00:03]}  Kc7 {[%clk 0:00:06]} 66. Ba4 {[%clk 0:00:03]}  Kb6 {[%clk 0:00:07]} 67. Bd7 {[%clk 0:00:04]}  Kb7 {[%clk 0:00:06]} 68. Bb5 {[%clk 0:00:04]}  Kc7 {[%clk 0:00:07]} 69. Ba4 {[%clk 0:00:04]}  Kd6 {[%clk 0:00:08]} 70. Bb5 {[%clk 0:00:05]}  Ke7 {[%clk 0:00:08]} 71. Kf4 {[%clk 0:00:04]}  Kf7 {[%clk 0:00:09]} 72. Ke3 {[%clk 0:00:04]}  Kg7 {[%clk 0:00:09]} 73. Kf4 {[%clk 0:00:04]}  Kg6 {[%clk 0:00:10]} 74. Bd3+ {[%clk 0:00:04]}  Kh6 {[%clk 0:00:10]} 75. Be2 {[%clk 0:00:04]}  Kg7 {[%clk 0:00:10]} 76. Bh5 {[%clk 0:00:04]}  Kf8 {[%clk 0:00:10]} 77. Be2 {[%clk 0:00:04]}  Ke7 {[%clk 0:00:11]} 78. Ke3 {[%clk 0:00:04]}  Kd6 {[%clk 0:00:12]} 79. Bb5 {[%clk 0:00:05]} 1/2-1/2


[Site "https://www.chess.com"]

[Event "Titled Tuesday Blitz October 11 Late 2022"]
[White "Zochowski, Kacper"]
[Black "Aghasiyev, Kamal"]
[WhiteFideId "1125494"]
[BlackFideId "13402854"]
[WhiteElo "2292"]
[BlackElo "2341"]
[Result "0-1"]
[Round "10"]
[TimeControl "180+1"]
[Date "2022.10.11"]
[WhiteClock "0:00:04"]
[BlackClock "0:00:13"]

1. Nf3 {[%clk 0:03:00]}  d5 {[%clk 0:02:59]} 2. c4 {[%clk 0:03:01]}  e6 {[%clk 0:02:58]} 3. g3 {[%clk 0:03:01]}  Nf6 {[%clk 0:02:57]} 4. Bg2 {[%clk 0:03:02]}  dxc4 {[%clk 0:02:56]} 5. O-O {[%clk 0:03:01]}  c5 {[%clk 0:02:55]} 6. Qa4+ {[%clk 0:03:01]}  Bd7 {[%clk 0:02:55]} 7. Qxc4 {[%clk 0:03:01]}  Nc6 {[%clk 0:02:50]} 8. b3 {[%clk 0:03:01]}  Be7 {[%clk 0:02:46]} 9. Bb2 {[%clk 0:03:01]}  O-O {[%clk 0:02:46]} 10. d3 {[%clk 0:02:57]}  b5 {[%clk 0:02:36]} 11. Qc2 {[%clk 0:02:48]}  Qb6 {[%clk 0:02:33]} 12. Nc3 {[%clk 0:02:45]}  Rac8 {[%clk 0:02:32]} 13. Rac1 {[%clk 0:02:44]}  Rfd8 {[%clk 0:02:10]} 14. e4 {[%clk 0:02:44]}  Be8 {[%clk 0:02:06]} 15. Qe2 {[%clk 0:02:35]}  Ng4 {[%clk 0:01:59]} 16. Rfd1 {[%clk 0:02:17]}  Bf6 {[%clk 0:01:40]} 17. h3 {[%clk 0:02:08]}  Nge5 {[%clk 0:01:35]} 18. Nxe5 {[%clk 0:02:08]}  Nxe5 {[%clk 0:01:18]} 19. Kh2 {[%clk 0:02:05]}  b4 {[%clk 0:01:16]} 20. Na4 {[%clk 0:02:03]}  Bxa4 {[%clk 0:01:16]} 21. bxa4 {[%clk 0:02:02]}  Qa6 {[%clk 0:01:07]} 22. f4 {[%clk 0:01:39]}  Nxd3 {[%clk 0:01:02]} 23. Bxf6 {[%clk 0:01:39]}  gxf6 {[%clk 0:01:02]} 24. Qg4+ {[%clk 0:01:30]}  Kf8 {[%clk 0:01:01]} 25. Bf1 {[%clk 0:01:15]}  c4 {[%clk 0:00:59]} 26. Bxd3 {[%clk 0:01:15]}  cxd3 {[%clk 0:00:57]} 27. Rxc8 {[%clk 0:01:12]}  Qxc8 {[%clk 0:00:46]} 28. h4 {[%clk 0:01:06]}  Qc4 {[%clk 0:00:35]} 29. e5 {[%clk 0:00:58]}  fxe5 {[%clk 0:00:32]} 30. Qg5 {[%clk 0:00:58]}  Rd5 {[%clk 0:00:23]} 31. fxe5 {[%clk 0:00:47]}  Qxa2+ {[%clk 0:00:19]} 32. Rd2 {[%clk 0:00:46]}  Qxa4 {[%clk 0:00:11]} 33. Qh6+ {[%clk 0:00:45]}  Ke8 {[%clk 0:00:11]} 34. Qxh7 {[%clk 0:00:46]}  Qb3 {[%clk 0:00:09]} 35. Qh8+ {[%clk 0:00:46]}  Kd7 {[%clk 0:00:09]} 36. Qf6 {[%clk 0:00:28]}  Kc6 {[%clk 0:00:08]} 37. Qxf7 {[%clk 0:00:27]}  Rxe5 {[%clk 0:00:07]} 38. Qe8+ {[%clk 0:00:27]}  Kd5 {[%clk 0:00:07]} 39. Qd7+ {[%clk 0:00:22]}  Ke4 {[%clk 0:00:06]} 40. Qh7+ {[%clk 0:00:22]}  Ke3 {[%clk 0:00:05]} 41. Qh6+ {[%clk 0:00:22]}  Kd4 {[%clk 0:00:05]} 42. Qf4+ {[%clk 0:00:20]}  Re4 {[%clk 0:00:05]} 43. Qd6+ {[%clk 0:00:19]}  Qd5 {[%clk 0:00:05]} 44. Qxb4+ {[%clk 0:00:19]}  Ke3 {[%clk 0:00:05]} 45. Qb2 {[%clk 0:00:18]}  Qe5 {[%clk 0:00:04]} 46. Rg2 {[%clk 0:00:17]}  Rxh4+ {[%clk 0:00:03]} 47. Kg1 {[%clk 0:00:18]}  Qxb2 {[%clk 0:00:04]} 48. gxh4 {[%clk 0:00:18]}  Qc1+ {[%clk 0:00:03]} 49. Kh2 {[%clk 0:00:17]}  Qc7+ {[%clk 0:00:03]} 50. Kh3 {[%clk 0:00:10]}  Kf3 {[%clk 0:00:04]} 51. h5 {[%clk 0:00:09]}  Qh7 {[%clk 0:00:03]} 52. Rg5 {[%clk 0:00:04]}  Qf5+ {[%clk 0:00:03]} 53. Rxf5+ {[%clk 0:00:04]}  exf5 {[%clk 0:00:04]} 54. h6 {[%clk 0:00:05]}  d2 {[%clk 0:00:05]} 55. h7 {[%clk 0:00:06]}  d1=Q {[%clk 0:00:06]} 56. Kh4 {[%clk 0:00:06]}  Qh1+ {[%clk 0:00:06]} 57. Kg5 {[%clk 0:00:07]}  Qxh7 {[%clk 0:00:07]} 58. Kf6 {[%clk 0:00:07]}  a5 {[%clk 0:00:07]} 59. Ke5 {[%clk 0:00:07]}  a4 {[%clk 0:00:08]} 60. Kf6 {[%clk 0:00:08]}  a3 {[%clk 0:00:09]} 61. Kg5 {[%clk 0:00:09]}  a2 {[%clk 0:00:10]} 62. Kf6 {[%clk 0:00:10]}  f4 {[%clk 0:00:10]} 63. Kg5 {[%clk 0:00:11]}  Kg3 {[%clk 0:00:11]} 64. Kf6 {[%clk 0:00:11]}  f3 {[%clk 0:00:12]} 65. Kg5 {[%clk 0:00:12]}  f2 {[%clk 0:00:13]} 66. Kf6 {[%clk 0:00:03]}  f1=Q+ {[%clk 0:00:13]} 67. Ke6 {[%clk 0:00:04]}  Qff5+ {[%clk 0:00:13]} 68. Kd6 {[%clk 0:00:04]}  Qhd7# {[%clk 0:00:13]} 0-1


[Site "https://www.chess.com"]